bitfinex-derivatives/quotes_BTCF0:USTF0_20241116
["timestamp","ask_amount","ask_price","bid_price","bid_amount"]
[1731733536932,0.3917,91276.0,91269.0,0.1963022]
[1731733537133,0.3917,91276.0,91271.0,0.1963022]
[1731733537333,0.3917,91276.0,91268.0,0.1037175]
[1731733537334,0.3917,91276.0,91272.0,0.1963022]
[1731733537533,0.3608,91276.0,91272.0,0.1963022]
[1731733537740,0.3608,91276.0,91274.0,0.1963022]
[1731733538246,0.3608,91276.0,91273.0,0.1963022]
[1731733538837,0.3608,91276.0,91275.0,0.0680602]
[1731733541748,0.3608,91276.0,91275.0,0.2643624]
[1731733542943,0.3608,91276.0,91275.0,0.0680602]
[1731733543736,0.3608,91276.0,91275.0,0.26444069]
[1731733543939,0.3608,91276.0,91275.0,0.0680602]
[1731733544550,0.3608,91276.0,91275.0,0.2644355]
[1731733544750,0.3608,91276.0,91275.0,0.0680602]
[1731733545145,0.3608,91276.0,91275.0,0.26443666]
[1731733545945,0.3608,91276.0,91275.0,0.0680602]
[1731733546152,0.37043701,91276.0,91275.0,0.0680602]
[1731733546555,0.42369179,91276.0,91275.0,0.00634268]
[1731733547140,0.4236998,91276.0,91275.0,0.00634268]
[1731733547558,0.4236998,91276.0,91269.0,0.05401592]
[1731733547559,0.4236998,91276.0,91269.0,0.12207612]
[1731733547744,0.16414192,91272.0,91269.0,0.0680602]
[1731733547948,0.00964502,91271.0,91269.0,0.0680602]
[1731733548156,0.00964502,91270.0,91269.0,0.0680602]
[1731733548769,0.16414192,91271.0,91269.0,0.0680602]
[1731733549246,0.00969495,91270.0,91269.0,0.0680602]
[1731733549657,0.16414192,91271.0,91269.0,0.0680602]
[1731733549956,0.00969485,91270.0,91269.0,0.0680602]
[1731733552657,0.16414192,91272.0,91269.0,0.0680602]
[1731733552958,0.00973883,91271.0,91269.0,0.0680602]
[1731733553775,0.17388075,91271.0,91269.0,0.0680602]
[1731733553962,0.00973883,91270.0,91269.0,0.0680602]
[1731733554463,0.00973883,91271.0,91269.0,0.0680602]
[1731733554651,0.00973883,91270.0,91269.0,0.0680602]
[1731733554846,0.00973883,91275.0,91269.0,0.0680602]
[1731733555048,0.3608,91276.0,91271.0,0.26184773]
[1731733555049,0.00973883,91274.0,91271.0,0.26184773]
[1731733555251,0.00973883,91273.0,91271.0,0.26184773]
[1731733555460,0.00973883,91272.0,91271.0,0.26184773]
[1731733555654,0.00973883,91275.0,91270.0,0.26184773]
[1731733555855,0.00973883,91274.0,91271.0,0.26184773]
[1731733556055,0.13130537,91278.0,91272.0,0.26184773]
[1731733556353,0.00982799,91277.0,91276.0,0.19637046]
[1731733556553,0.00982799,91277.0,91276.0,0.34480773]
[1731733557160,8.03e-05,91279.0,91276.0,0.34480773]
[1731733557661,8.03e-05,91279.0,91276.0,0.08296]
[1731733557865,8.03e-05,91279.0,91276.0,0.34480773]
[1731733559163,8.03e-05,91279.0,91278.0,0.1361204]
[1731733559564,8.03e-05,91279.0,91278.0,0.0680602]
[1731733560255,0.00994675,91279.0,91278.0,0.0680602]
[1731733560755,0.00994675,91279.0,91276.0,0.08296]
[1731733560958,0.00986645,91278.0,91276.0,0.08296]
[1731733561279,0.00986645,91277.0,91276.0,0.08296]
[1731733561654,0.00986645,91277.0,91276.0,0.08228]
[1731733564960,0.00986645,91277.0,91276.0,0.13757527]
[1731733565163,0.13138567,91279.0,91276.0,0.20563547]
[1731733565459,0.13138567,91279.0,91277.0,0.26184773]
[1731733565460,8.03e-05,91279.0,91277.0,0.26184773]
[1731733565664,8.03e-05,91279.0,91278.0,0.30874224]
[1731733566058,8.03e-05,91279.0,91277.0,0.0311]
[1731733566059,0.00993886,91279.0,91277.0,0.35833174]
[1731733566251,8.03e-05,91279.0,91277.0,0.0311]
[1731733566455,8.03e-05,91279.0,91278.0,0.08228]
[1731733571566,0.00987998,91279.0,91278.0,0.27849882]
[1731733572166,0.00987998,91279.0,91278.0,0.34655902]
[1731733574168,0.00987998,91279.0,91278.0,0.1503402]
[1731733574369,8.03e-05,91279.0,91278.0,0.67523902]
[1731733574564,0.0051,91285.0,91278.0,0.4790202]
[1731733574874,0.13130537,91286.0,91284.0,0.0680602]
[1731733575172,0.0051,91290.0,91284.0,0.0680602]
[1731733575173,0.0051,91290.0,91284.0,0.26423443]
[1731733575363,0.13130537,91290.0,91289.0,0.0680602]
[1731733575564,0.13130537,91290.0,91289.0,0.1503402]
[1731733575565,0.00980002,91290.0,91289.0,0.1503402]
[1731733576874,0.00978654,91290.0,91289.0,0.1503402]
[1731733578571,0.00978654,91290.0,91289.0,0.2051581]
[1731733579181,0.0001312,91294.0,91289.0,0.2051581]
[1731733579369,0.00981345,91293.0,91289.0,0.2051581]
[1731733579571,0.00981345,91292.0,91289.0,0.2051581]
[1731733579870,0.0001312,91294.0,91289.0,0.2051581]
[1731733580176,0.0001312,91294.0,91293.0,0.19600232]
[1731733580363,0.00991344,91294.0,91293.0,0.19600232]
[1731733580866,0.0001312,91294.0,91289.0,0.2051581]
[1731733581075,0.00991024,91294.0,91289.0,0.2051581]
[1731733581372,0.0001312,91294.0,91293.0,0.19600064]
[1731733581567,0.00990339,91294.0,91293.0,0.19600064]
[1731733581968,0.07796359,91294.0,91293.0,0.19600064]
[1731733582162,0.0681914,91294.0,91292.0,0.08228]
[1731733582574,0.00983651,91293.0,91292.0,0.08228]
[1731733584781,0.0001312,91294.0,91292.0,0.08228]
[1731733585578,0.0001312,91294.0,91292.0,0.13741998]
[1731733585768,0.0001312,91294.0,91292.0,0.05513998]
[1731733585971,0.0001312,91294.0,91289.0,0.0680602]
[1731733585972,0.0001312,91294.0,91293.0,0.08228]
[1731733587486,0.13132156,91294.0,91293.0,0.08228]
[1731733588577,0.0001312,91294.0,91293.0,0.08228]
[1731733589286,0.00982013,91294.0,91293.0,0.08228]
[1731733590475,0.0001312,91294.0,91293.0,0.08228]
[1731733591685,0.0001312,91294.0,91293.0,0.27828064]
[1731733591978,0.0001312,91294.0,91293.0,0.08228]
[1731733592988,0.0001312,91294.0,91293.0,0.34365488]
[1731733593176,0.0001312,91294.0,91293.0,0.08228]
[1731733593875,0.0001312,91294.0,91293.0,0.34365488]
[1731733594474,0.00980809,91294.0,91293.0,0.34365488]
[1731733594776,0.00980809,91294.0,91293.0,0.08228]
[1731733595181,0.00980809,91294.0,91293.0,0.34373841]
[1731733595485,0.00980809,91294.0,91293.0,0.08228]
[1731733597282,0.00980809,91294.0,91293.0,0.1503402]
[1731733597483,0.00980809,91294.0,91293.0,0.08228]
[1731733597678,0.00980809,91294.0,91293.0,0.1503402]
[1731733598285,0.00967689,91294.0,91293.0,0.2184004]
[1731733598484,0.13118188,91312.0,91293.0,0.95768285]
[1731733598677,0.13118188,91314.0,91309.0,0.39752166]
[1731733598879,0.49198188,91315.0,91314.0,0.0680602]
[1731733599178,0.0302,91319.0,91314.0,0.1503002]
[1731733599179,0.13118188,91318.0,91314.0,0.1503002]
[1731733599379,0.00011958,91317.0,91314.0,0.1503002]
[1731733599679,0.00011958,91317.0,91316.0,0.19592619]
[1731733599877,0.00011958,91317.0,91314.0,0.1503002]
[1731733599878,0.00011958,91317.0,91314.0,0.2183604]
[1731733600084,0.1311578,91315.0,91314.0,0.2183604]
[1731733600292,0.1311578,91316.0,91314.0,0.2183604]
[1731733600789,0.00011958,91317.0,91314.0,0.2183604]
[1731733601882,0.00011958,91317.0,91314.0,0.08224]
[1731733602076,0.00011958,91317.0,91316.0,0.0680602]
[1731733603289,0.00011958,91317.0,91314.0,0.13637199]
[1731733603500,0.00011958,91317.0,91316.0,0.0680602]
[1731733606188,0.00011958,91317.0,91314.0,0.13637199]
[1731733606383,0.00011958,91317.0,91316.0,0.0680602]
[1731733606790,0.00011958,91317.0,91316.0,0.10359918]
[1731733607190,0.00011958,91317.0,91314.0,0.13637199]
[1731733607501,0.00011958,91317.0,91316.0,0.10359918]
[1731733611495,0.00011958,91317.0,91314.0,0.13637199]
[1731733611695,0.00011958,91317.0,91316.0,0.10359918]
[1731733614388,0.00011958,91317.0,91316.0,0.29910089]
[1731733614589,0.00011958,91317.0,91316.0,0.10359918]
[1731733618093,0.00011958,91317.0,91316.0,0.36500044]
[1731733618395,0.00060001,91324.0,91316.0,0.10359918]
[1731733618597,0.0051,91325.0,91323.0,0.10359918]
[1731733618900,0.0051,91332.0,91324.0,0.52399348]
[1731733619098,0.0051,91338.0,91333.0,0.10359918]
[1731733619304,0.01030116,91335.0,91334.0,0.00013599]
[1731733619503,0.0051,91343.0,91334.0,0.00013599]
[1731733621705,0.0051,91343.0,91334.0,0.05409578]
[1731733621913,0.0051,91343.0,91335.0,0.10359918]
[1731733622211,0.0051,91343.0,91335.0,0.46439918]
[1731733622394,0.0051,91343.0,91342.0,0.10359918]
[1731733622599,8.06e-05,91344.0,91342.0,0.10359918]
[1731733622794,8.06e-05,91344.0,91343.0,0.3608]
[1731733626799,8.06e-05,91344.0,91343.0,0.496679]
[1731733627011,0.01030668,91344.0,91343.0,0.496679]
[1731733627202,0.01030668,91344.0,91343.0,0.4287395]
[1731733628615,0.01030668,91344.0,91343.0,0.496679]
[1731733630006,8.06e-05,91344.0,91343.0,0.4287395]
[1731733632611,8.06e-05,91344.0,91343.0,0.496679]
[1731733634505,0.13086875,91367.0,91343.0,0.76001997]
[1731733634711,0.13086875,91371.0,91362.0,0.496679]
[1731733634903,0.0309,91374.0,91362.0,0.578879]
[1731733636922,0.0309,91374.0,91362.0,0.5464744]
[1731733638714,0.0309,91374.0,91362.0,0.4642744]
[1731733638916,0.0309,91374.0,91362.0,0.5464344]
[1731733641124,0.0309,91374.0,91362.0,0.60122385]
[1731733641327,0.13086875,91372.0,91362.0,0.60122385]
[1731733641920,0.13086875,91373.0,91362.0,0.60122385]
[1731733642213,0.0309,91374.0,91362.0,0.60122385]
[1731733643012,0.13086875,91375.0,91362.0,1.03305825]
[1731733643218,0.13086875,91375.0,91374.0,0.3608]
[1731733643414,0.0098951,91375.0,91374.0,0.2787993]
[1731733643623,0.0635,91378.0,91374.0,0.2787993]
[1731733643624,0.13059433,91376.0,91374.0,0.2787993]
[1731733643817,0.13059433,91377.0,91374.0,0.2787993]
[1731733644013,0.0635,91378.0,91374.0,0.2787993]
[1731733644720,0.0312,91378.0,91374.0,0.2787993]
[1731733644913,0.0306,91387.0,91374.0,0.2787993]
[1731733645218,0.0306,91387.0,91386.0,0.1034744]
[1731733645513,0.0306,91387.0,91386.0,0.1856344]
[1731733645919,0.0615,91391.0,91386.0,0.18577431]
[1731733646718,0.0615,91391.0,91390.0,0.1034744]
[1731733646916,0.0311,91391.0,91390.0,0.1034744]
[1731733647120,0.0303,91401.0,91390.0,0.1034744]
[1731733647315,0.0309,91399.0,91390.0,0.1034744]
[1731733647814,0.0309,91399.0,91390.0,0.4642744]
[1731733648412,0.0309,91399.0,91398.0,0.1034744]
[1731733648615,0.0309,91399.0,91398.0,0.1856344]
[1731733650113,0.0309,91399.0,91398.0,0.1034744]
[1731733650316,0.0309,91399.0,91398.0,0.1855944]
[1731733651524,0.0304,91403.0,91398.0,0.08212]
[1731733651717,0.0304,91403.0,91398.0,0.44292]
[1731733652316,0.0304,91403.0,91398.0,0.08212]
[1731733653219,0.0304,91403.0,91396.0,0.3608]
[1731733653420,0.0304,91403.0,91397.0,0.08212]
[1731733655823,0.0642,91414.0,91397.0,0.08212]
[1731733656125,0.0308,91413.0,91397.0,0.08212]
[1731733656618,0.0308,91413.0,91412.0,0.1034744]
[1731733656818,0.0258,91413.0,91412.0,0.14995096]
[1731733657018,0.0642,91414.0,91412.0,0.21778192]
[1731733657723,0.0319,91414.0,91412.0,0.21778192]
[1731733658845,0.0319,91414.0,91413.0,0.10335669]
[1731733659817,0.00164136,91422.0,91413.0,0.10335669]
[1731733660020,0.13059433,91426.0,91421.0,0.10335669]
[1731733660329,0.13059433,91426.0,91412.0,0.13560402]
[1731733660330,0.0301,91428.0,91425.0,0.10335669]
[1731733660516,0.0301,91428.0,91426.0,0.08212]
[1731733660920,0.16069433,91428.0,91426.0,0.08212]
[1731733661131,0.0301,91428.0,91426.0,0.08212]
[1731733661322,0.16069433,91428.0,91427.0,0.08212]
[1731733661519,0.03998303,91428.0,91427.0,0.08212]
[1731733662027,0.03998303,91428.0,91425.0,0.05516873]
[1731733662326,0.17346897,91427.0,91426.0,0.08212]
[1731733662528,0.17346897,91427.0,91426.0,0.00024664]
[1731733662825,0.00988303,91427.0,91426.0,0.00024664]
[1731733664227,0.0832671,91428.0,91426.0,0.00024664]
[1731733664527,0.06295448,91427.0,91426.0,0.00024664]
[1731733664717,0.06295257,91427.0,91426.0,0.00024664]
[1731733664918,0.06295443,91427.0,91426.0,0.00024664]
[1731733665322,0.0629528,91427.0,91426.0,0.00024664]
[1731733665835,0.17278104,91427.0,91426.0,0.00024664]
[1731733666223,0.17279546,91427.0,91426.0,0.00024664]
[1731733666424,0.17283714,91427.0,91426.0,0.00024664]
[1731733667223,0.00982906,91427.0,91426.0,0.00024664]
[1731733667622,4.168e-05,91427.0,91426.0,0.00024664]
[1731733667831,0.00985821,91427.0,91426.0,0.00024664]
[1731733668030,0.01967474,91427.0,91426.0,0.00024664]
[1731733669329,0.1500996,91427.0,91426.0,0.00024664]
[1731733669835,0.00985821,91427.0,91426.0,0.00024664]
[1731733670130,4.168e-05,91427.0,91426.0,0.00024664]
[1731733670331,0.1403468,91427.0,91426.0,0.00024664]
[1731733670723,0.00992194,91427.0,91426.0,0.00024664]
[1731733671538,0.00994595,91427.0,91426.0,0.00024664]
[1731733675233,0.06311194,91427.0,91426.0,0.00024664]
[1731733675735,0.06311194,91427.0,91417.0,0.05497182]
[1731733675924,0.3608,91420.0,91417.0,0.08208]
[1731733676123,0.06307032,91419.0,91417.0,0.08208]
[1731733676329,0.00990427,91418.0,91417.0,0.08208]
[1731733676530,0.06307032,91418.0,91417.0,0.08208]
[1731733676936,0.24946917,91418.0,91417.0,0.08208]
[1731733677125,0.07912698,91418.0,91417.0,0.08208]
[1731733677329,0.07912698,91418.0,91416.0,0.05442657]
[1731733677330,0.2754301,91418.0,91416.0,0.05442657]
[1731733677535,0.06309798,91417.0,91408.0,0.0051]
[1731733677836,0.16357904,91413.0,91409.0,0.08208]
[1731733678043,0.04043193,91412.0,91409.0,0.08208]
[1731733678233,0.0942,91412.0,91409.0,0.08208]
[1731733678425,0.01004683,91411.0,91407.0,0.15966827]
[1731733678626,0.01004683,91411.0,91408.0,0.08208]
[1731733678835,0.18970143,91410.0,91403.0,0.3659]
[1731733679032,0.19630312,91408.0,91403.0,0.05333825]
[1731733679237,0.19630312,91408.0,91401.0,0.08208]
[1731733679238,0.16364132,91404.0,91401.0,0.08208]
[1731733679436,0.01004683,91403.0,91401.0,0.08208]
[1731733679639,0.16364132,91404.0,91401.0,0.08208]
[1731733679829,0.0099387,91403.0,91401.0,0.08208]
[1731733680030,0.16364132,91404.0,91401.0,0.08208]
[1731733680239,0.3608,91411.0,91401.0,0.08208]
[1731733680240,0.17355905,91403.0,91401.0,0.08208]
[1731733680427,0.00991773,91402.0,91401.0,0.08208]
[1731733680626,0.00991773,91403.0,91401.0,0.08208]
[1731733680830,0.16364132,91404.0,91401.0,0.08208]
[1731733680831,0.00991773,91402.0,91401.0,0.08208]
[1731733681030,0.16364132,91404.0,91401.0,0.08208]
[1731733681227,0.00995274,91403.0,91401.0,0.08208]
[1731733681436,0.00995274,91402.0,91401.0,0.08208]
[1731733682332,0.00995274,91402.0,91401.0,0.13680736]
[1731733683439,0.13092942,91408.0,91401.0,0.13680736]
[1731733683638,0.00982972,91407.0,91401.0,0.13680736]
[1731733683845,0.00982972,91406.0,91401.0,0.13680736]
[1731733684138,0.00982972,91405.0,91401.0,0.13680736]
[1731733684338,0.00982972,91404.0,91401.0,0.13680736]
[1731733684737,0.00978453,91403.0,91401.0,0.13680736]
[1731733684938,0.3608,91407.0,91401.0,0.13680736]
[1731733685139,0.00978453,91406.0,91401.0,0.13680736]
[1731733685434,0.00979591,91405.0,91401.0,0.13680736]
[1731733685633,0.3608,91407.0,91401.0,0.13680736]
[1731733685634,0.00979591,91404.0,91401.0,0.13680736]
[1731733685830,0.00979591,91403.0,91401.0,0.13680736]
[1731733686045,0.3608,91407.0,91401.0,0.13680736]
[1731733686237,0.00969114,91406.0,91401.0,0.13680736]
[1731733686439,0.3608,91407.0,91401.0,0.13680736]
[1731733687749,0.0942,91412.0,91401.0,0.13680736]
[1731733688043,0.0942,91412.0,91407.0,0.10335669]
[1731733688250,0.00964851,91411.0,91407.0,0.10335669]
[1731733688544,0.00964806,91410.0,91407.0,0.10335669]
[1731733688746,0.37044806,91409.0,91407.0,0.10335669]
[1731733688937,0.3608,91409.0,91401.0,0.13680736]
[1731733689441,0.13092942,91408.0,91401.0,0.13680736]
[1731733690238,0.13092942,91408.0,91401.0,0.05472736]
[1731733690437,0.13092942,91408.0,91402.0,0.08212]
[1731733690838,0.49172942,91409.0,91402.0,0.08212]
[1731733692344,0.3608,91409.0,91402.0,0.08212]
[1731733692539,0.3608,91409.0,91403.0,0.08212]
[1731733694749,0.3608,91409.0,91404.0,0.06786561]
[1731733695847,0.3608,91409.0,91405.0,0.08212]
[1731733699151,0.3608,91409.0,91404.0,0.06786561]
[1731733699152,0.3608,91409.0,91406.0,0.08212]
[1731733699346,0.00974822,91408.0,91406.0,0.08212]
[1731733699751,0.3608,91409.0,91406.0,0.08212]
[1731733699950,0.00974863,91408.0,91406.0,0.08212]
[1731733700146,0.00974863,91407.0,91406.0,0.08212]
[1731733700343,0.3608,91409.0,91406.0,0.08212]
[1731733701951,0.00995511,91408.0,91406.0,0.08212]
[1731733702149,0.00995511,91407.0,91406.0,0.08212]
[1731733704249,0.00995511,91407.0,91406.0,0.34201041]
[1731733704450,0.3608,91412.0,91406.0,0.34201041]
[1731733704643,0.00996489,91411.0,91406.0,0.34201041]
[1731733704847,0.00996489,91410.0,91406.0,0.34201041]
[1731733705156,0.00996489,91409.0,91406.0,0.34201041]
[1731733705451,0.49172942,91412.0,91407.0,0.25989041]
[1731733705643,0.0099588,91411.0,91408.0,0.25989041]
[1731733705842,0.13092942,91416.0,91408.0,0.3608]
[1731733706148,0.13257069,91422.0,91415.0,0.10341109]
[1731733706451,0.0100216,91421.0,91418.0,0.26072488]
[1731733706658,0.00164127,91422.0,91419.0,0.08212]
[1731733706659,0.0100216,91420.0,91419.0,0.08212]
[1731733706853,0.00164127,91422.0,91419.0,0.08212]
[1731733707055,0.01002031,91421.0,91420.0,0.2606953]
[1731733707249,0.00164127,91422.0,91419.0,0.34273697]
[1731733707446,0.00164127,91422.0,91421.0,0.26061697]
[1731733707755,0.01151201,91422.0,91421.0,0.26061697]
[1731733708258,0.00164127,91422.0,91420.0,0.26061697]
[1731733709250,0.00164127,91422.0,91419.0,0.34273697]
[1731733709747,0.00164127,91422.0,91419.0,0.08212]
[1731733710057,0.00164127,91422.0,91421.0,0.26051203]
[1731733710359,0.00164127,91422.0,91419.0,0.08212]
[1731733710661,0.00164127,91422.0,91420.0,0.26044814]
[1731733710846,0.00164127,91422.0,91421.0,0.26044814]
[1731733711258,0.00164127,91422.0,91420.0,0.26044814]
[1731733711564,0.00164127,91422.0,91421.0,0.26044814]
[1731733711764,0.00164127,91422.0,91420.0,0.26044814]
[1731733712458,0.00164127,91422.0,91419.0,0.08212]
[1731733716063,0.00164127,91422.0,91420.0,0.02187597]
[1731733716250,0.00164127,91422.0,91420.0,0.05267597]
[1731733719762,0.00164127,91422.0,91420.0,0.31312411]
[1731733720463,0.00164127,91422.0,91421.0,0.26044814]
[1731733722264,4.168e-05,91427.0,91420.0,0.05267597]
[1731733722454,4.168e-05,91427.0,91423.0,0.10341109]
[1731733722759,4.168e-05,91427.0,91426.0,0.06783039]
[1731733722966,4.168e-05,91427.0,91420.0,0.02187597]
[1731733722967,0.06787207,91427.0,91420.0,0.02187597]
[1731733723262,0.0312,91426.0,91421.0,0.08208]
[1731733724055,0.0312,91426.0,91422.0,0.06783039]
[1731733724869,0.0312,91426.0,91420.0,0.02187597]
[1731733725058,0.0312,91426.0,91421.0,0.08208]
[1731733732463,0.00983642,91425.0,91421.0,0.08208]
[1731733732764,0.0312,91426.0,91421.0,0.34252814]
[1731733733358,0.0098457,91425.0,91421.0,0.34252814]
[1731733733558,0.0312,91426.0,91424.0,0.1033708]
[1731733733766,0.0098457,91425.0,91424.0,0.1033708]
[1731733734077,0.0312,91426.0,91424.0,0.1033708]
[1731733734277,0.00984757,91425.0,91424.0,0.1033708]
[1731733734577,0.13106464,91425.0,91421.0,0.08208]
[1731733734771,0.13106489,91424.0,91421.0,0.08208]
[1731733735265,0.13106489,91422.0,91421.0,0.08208]
[1731733736269,4.168e-05,91427.0,91421.0,0.08208]
[1731733736773,0.00994635,91426.0,91421.0,0.08208]
[1731733736972,0.00994635,91425.0,91421.0,0.08208]
[1731733737176,0.00994635,91424.0,91421.0,0.08208]
[1731733737377,0.00994635,91423.0,91421.0,0.08208]
[1731733737569,0.00994635,91422.0,91421.0,0.08208]
[1731733738867,0.16364132,91428.0,91421.0,0.08208]
[1731733738868,0.00995421,91427.0,91421.0,0.08208]
[1731733739070,0.00995421,91426.0,91421.0,0.08208]
[1731733739265,4.08e-05,91422.0,91421.0,0.08208]
[1731733739572,0.00999501,91422.0,91421.0,0.08208]
[1731733740576,0.14115816,91422.0,91421.0,0.08208]
[1731733740778,0.00999501,91422.0,91421.0,0.08208]
[1731733741273,0.14115789,91422.0,91421.0,0.08208]
[1731733741673,0.00999501,91422.0,91421.0,0.08208]
[1731733742367,0.00999501,91422.0,91417.0,0.3608]
[1731733742368,0.47416581,91422.0,91417.0,0.26044814]
[1731733742584,0.10585421,91421.0,91418.0,0.08208]
[1731733742873,0.17392721,91420.0,91418.0,0.08208]
[1731733743075,0.00995421,91419.0,91418.0,0.08208]
[1731733743483,0.00995421,91420.0,91418.0,0.08208]
[1731733743670,0.00995421,91420.0,91409.0,0.0051]
[1731733743671,0.68896,91419.0,91409.0,0.26554814]
[1731733743874,0.49193903,91410.0,91407.0,0.26044814]
[1731733744074,0.13113903,91408.0,91402.0,0.26044814]
[1731733744276,0.3608,91410.0,91399.0,0.26044814]
[1731733744277,0.13114818,91405.0,91399.0,0.26044814]
[1731733744475,0.1033708,91406.0,91393.0,0.0051]
[1731733744476,0.3608,91400.0,91395.0,0.08208]
[1731733744676,0.0727048,91399.0,91395.0,0.08208]
[1731733744877,0.13114818,91398.0,91387.0,0.26554814]
[1731733745173,0.13114818,91398.0,91383.0,0.0012]
[1731733745174,0.3608,91389.0,91383.0,0.0012]
[1731733745780,0.13114818,91387.0,91383.0,0.0012]
[1731733745970,0.0098489,91387.0,91383.0,0.0012]
[1731733748583,0.3608,91389.0,91383.0,0.0012]
[1731733749080,0.3608,91389.0,91386.0,3.9e-06]
[1731733749585,0.3608,91387.0,91386.0,3.9e-06]
[1731733749975,0.68908,91387.0,91383.0,0.0012]
[1731733750284,0.44174369,91386.0,91383.0,0.0012]
[1731733750577,0.01009289,91385.0,91383.0,0.0012]
[1731733750786,0.32828,91385.0,91383.0,0.0012]
[1731733750978,0.10393081,91386.0,91383.0,0.0012]
[1731733750979,0.33836352,91384.0,91383.0,0.0012]
[1731733751182,0.01022286,91384.0,91383.0,0.0012]
[1731733751480,0.33850286,91384.0,91383.0,0.0012]
[1731733754180,0.62841934,91384.0,91383.0,0.0012]
[1731733754373,0.62841934,91384.0,91377.0,0.0051]
[1731733754374,0.1033708,91378.0,91377.0,0.0051]
[1731733754580,0.7924908,91378.0,91370.0,0.0051]
[1731733754779,0.7924908,91378.0,91365.0,0.00012068]
[1731733754780,0.39072,91377.0,91365.0,0.00012068]
[1731733754984,0.3608,91367.0,91365.0,0.00012068]
[1731733757777,0.1033708,91366.0,91365.0,0.00012068]
[1731733757990,0.1346708,91366.0,91365.0,0.00012068]
[1731733759584,0.0313,91366.0,91365.0,0.00012068]
[1731733760892,0.3608,91367.0,91365.0,0.00012068]
[1731733764390,0.00990837,91366.0,91365.0,0.00012068]
[1731733765790,0.3608,91367.0,91365.0,0.00012068]
[1731733766586,0.00991658,91366.0,91365.0,0.00012068]
[1731733766780,0.3608,91367.0,91365.0,0.00012068]
[1731733767992,0.3608,91367.0,91365.0,0.05387263]
[1731733768290,0.3608,91367.0,91365.0,0.00012068]
[1731733768493,0.3608,91367.0,91366.0,0.0324]
[1731733770589,0.3608,91375.0,91366.0,0.0324]
[1731733771988,0.01004568,91374.0,91366.0,0.0324]
[1731733772184,0.01012594,91373.0,91366.0,0.0324]
[1731733772381,0.3608,91375.0,91366.0,0.0324]
[1731733772382,0.01012594,91372.0,91366.0,0.0324]
[1731733772585,0.01012594,91371.0,91366.0,0.0324]
[1731733772781,0.01012594,91370.0,91366.0,0.0324]
[1731733772984,0.3608,91375.0,91366.0,0.0324]
[1731733773187,0.13080552,91372.0,91366.0,0.0324]
[1731733773387,0.13080552,91373.0,91366.0,0.0324]
[1731733773690,0.01015435,91372.0,91370.0,0.1033708]
[1731733773897,0.01015435,91371.0,91370.0,0.1854908]
[1731733774085,0.01015435,91373.0,91370.0,0.1854908]
[1731733774286,0.13080552,91371.0,91370.0,0.1854908]
[1731733774488,0.02643732,91372.0,91370.0,0.1854908]
[1731733774692,0.02643732,91371.0,91370.0,0.1854908]
[1731733775500,0.02643732,91374.0,91370.0,0.1854908]
[1731733775692,0.3608,91375.0,91370.0,0.1854908]
[1731733775693,0.02643732,91373.0,91370.0,0.1854908]
[1731733775994,0.02643732,91372.0,91370.0,0.1854908]
[1731733776203,0.02643732,91374.0,91370.0,0.1854908]
[1731733776501,0.02643732,91373.0,91370.0,0.1854908]
[1731733776798,0.02643732,91372.0,91370.0,0.1854908]
[1731733777002,0.02643732,91371.0,91370.0,0.1854908]
[1731733777403,0.13101956,91371.0,91370.0,0.44292]
[1731733777594,0.15780055,91374.0,91370.0,0.5462908]
[1731733777898,0.01030038,91373.0,91370.0,0.44292]
[1731733778096,0.14131994,91374.0,91372.0,0.1033708]
[1731733778303,0.00013934,91384.0,91373.0,0.0329]
[1731733778493,0.02657653,91383.0,91373.0,0.0329]
[1731733778799,0.02657653,91382.0,91373.0,0.0329]
[1731733778995,0.02657653,91381.0,91373.0,0.0329]
[1731733779308,0.15759447,91380.0,91373.0,0.0329]
[1731733779501,0.15759447,91379.0,91370.0,0.44424]
[1731733779692,0.02657653,91378.0,91370.0,0.44292]
[1731733780195,0.01022174,91378.0,91370.0,0.44292]
[1731733780397,0.01022174,91377.0,91370.0,0.44292]
[1731733780602,0.01022174,91376.0,91370.0,0.44292]
[1731733780901,0.01022174,91375.0,91370.0,0.44292]
[1731733781101,0.01022174,91374.0,91370.0,0.44292]
[1731733781311,0.13101794,91381.0,91370.0,0.44292]
[1731733781604,0.02639273,91380.0,91370.0,0.44292]
[1731733782192,0.14116899,91380.0,91370.0,0.44292]
[1731733782393,0.01015105,91379.0,91370.0,0.44292]
[1731733782592,0.01015105,91379.0,91370.0,0.3608]
[1731733782803,0.01015105,91379.0,91371.0,0.08212]
[1731733783404,0.01015105,91378.0,91371.0,0.08212]
[1731733783607,0.13101794,91381.0,91371.0,0.08212]
[1731733783802,0.01009914,91380.0,91371.0,0.08212]
[1731733784105,0.01009914,91379.0,91371.0,0.08212]
[1731733784405,0.13101794,91382.0,91371.0,0.08212]
[1731733784610,0.01001079,91381.0,91371.0,0.08212]
[1731733784800,0.13101794,91382.0,91371.0,0.08212]
[1731733785201,0.01001079,91380.0,91371.0,0.08212]
[1731733785503,0.13101794,91383.0,91371.0,0.08212]
[1731733785701,0.00998399,91382.0,91371.0,0.08212]
[1731733785899,0.00998399,91381.0,91371.0,0.08212]
[1731733786101,0.13101794,91383.0,91371.0,0.08212]
[1731733786301,0.00998334,91382.0,91371.0,0.08212]
[1731733786506,0.00998334,91381.0,91371.0,0.08212]
[1731733786698,0.13115728,91384.0,91371.0,0.08212]
[1731733786898,0.00013934,91384.0,91378.0,0.1033708]
[1731733787099,0.13101794,91382.0,91378.0,0.1033708]
[1731733787402,0.00013934,91384.0,91378.0,0.1033708]
[1731733787403,0.13115728,91384.0,91378.0,0.1033708]
[1731733787799,0.00013934,91384.0,91378.0,0.1033708]
[1731733788722,0.00013934,91384.0,91379.0,0.3608]
[1731733791406,0.01001163,91383.0,91379.0,0.3608]
[1731733791714,0.01001163,91382.0,91379.0,0.3608]
[1731733791901,0.00013934,91384.0,91379.0,0.3608]
[1731733792211,0.01001164,91383.0,91379.0,0.3608]
[1731733792408,0.00013934,91384.0,91379.0,0.3608]
[1731733792600,0.01001788,91383.0,91379.0,0.3608]
[1731733792802,0.00013934,91384.0,91379.0,0.3608]
[1731733793109,0.01001789,91383.0,91379.0,0.3608]
[1731733793308,0.00013934,91384.0,91379.0,0.3608]
[1731733793509,0.01001643,91383.0,91379.0,0.3608]
[1731733793712,0.00013934,91384.0,91379.0,0.3608]
[1731733793902,0.01001644,91383.0,91379.0,0.3608]
[1731733794102,0.00013934,91384.0,91379.0,0.3608]
[1731733794103,0.01001644,91382.0,91379.0,0.3608]
[1731733794303,0.00013934,91384.0,91379.0,0.3608]
[1731733794613,0.01002258,91383.0,91379.0,0.41510354]
[1731733794813,0.01002258,91382.0,91379.0,0.41510354]